[Event "*** Titled Tuesday Blitz"]
[Site "Chess.com"]
[Date "2020.05.12"]
[Round "9"]
[White "FMJoseHerrera"]
[Black "TST2014"]
[Result "1-0"]
[WhiteElo "2645"]
[BlackElo "2582"]
[TimeControl "180+1"]
[EndTime "11:41:15 PDT"]
[Termination "FMJoseHerrera won by resignation"]

1. Nf3 {[%clk 0:03:00.9]} 1... Nf6 {[%clk 0:02:58.4]} 2. g3 {[%clk 0:02:54.9]}
2... b6 {[%clk 0:02:58.1]} 3. Bg2 {[%clk 0:02:54.6]} 3... Bb7 {[%clk 0:02:58.4]}
4. d3 {[%clk 0:02:54.8]} 4... g6 {[%clk 0:02:56.3]} 5. Nc3 {[%clk 0:02:54]} 5...
Bg7 {[%clk 0:02:56.1]} 6. e4 {[%clk 0:02:53.7]} 6... O-O {[%clk 0:02:55.3]} 7.
h4 {[%clk 0:02:53.3]} 7... c5 {[%clk 0:02:49.7]} 8. h5 {[%clk 0:02:53]} 8...
Nxh5 {[%clk 0:02:46.6]} 9. Bg5 {[%clk 0:02:52.4]} 9... Nc6 {[%clk 0:02:40.4]}
10. Qd2 {[%clk 0:02:51.9]} 10... Nd4 {[%clk 0:02:10.3]} 11. Bh6 {[%clk
0:02:51.4]} 11... e6 {[%clk 0:01:42.2]} 12. Bxg7 {[%clk 0:02:41.5]} 12... Kxg7
{[%clk 0:01:37.3]} 13. g4 {[%clk 0:02:38.1]} 13... Nxf3+ {[%clk 0:01:15.7]} 14.
Bxf3 {[%clk 0:02:38.2]} 14... Qf6 {[%clk 0:01:15.9]} 15. Qe3 {[%clk 0:02:29.1]}
15... Nf4 {[%clk 0:01:13.6]} 16. e5 {[%clk 0:02:25.9]} 16... Bxf3 {[%clk
0:01:10.6]} 17. exf6+ {[%clk 0:02:25.4]} 17... Kxf6 {[%clk 0:01:04]} 18. Qxf4+
{[%clk 0:02:24.5]} 18... Kg7 {[%clk 0:01:04.4]} 19. Qxf3 {[%clk 0:02:23.3]}
19... d5 {[%clk 0:01:03.4]} 20. g5 {[%clk 0:02:12.1]} 20... f5 {[%clk
0:00:58.6]} 21. O-O-O {[%clk 0:02:01.8]} 21... d4 {[%clk 0:00:54.1]} 22. Ne2
{[%clk 0:01:57]} 22... Rae8 {[%clk 0:00:53.3]} 23. Rh6 {[%clk 0:01:56.6]} 23...
Re7 {[%clk 0:00:46]} 24. Rdh1 {[%clk 0:01:56.3]} 24... Rh8 {[%clk 0:00:45.1]}
25. Nf4 {[%clk 0:01:55.3]} 25... e5 {[%clk 0:00:43]} 26. Nd5 {[%clk 0:01:55.2]}
26... e4 {[%clk 0:00:42.5]} 27. Qh3 {[%clk 0:01:52.6]} 27... Re5 {[%clk
0:00:35.8]} 28. Rxh7+ {[%clk 0:01:52.4]} 28... Rxh7 {[%clk 0:00:29.8]} 29. Qxh7+
{[%clk 0:01:53.3]} 29... Kf8 {[%clk 0:00:23.1]} 30. Qh8+ {[%clk 0:01:53.3]}
30... Kf7 {[%clk 0:00:21.6]} 31. Qf6+ {[%clk 0:01:51]} 1-0

[Event "*** Titled Tuesday Blitz"]
[Site "Chess.com"]
[Date "2020.05.12"]
[Round "9"]
[White "zurzan"]
[Black "VladimirBugayev"]
[Result "0-1"]
[WhiteElo "1964"]
[BlackElo "2148"]
[TimeControl "180+1"]
[EndTime "11:41:21 PDT"]
[Termination "VladimirBugayev won by resignation"]

1. f4 {[%clk 0:03:00.9]} 1... d5 {[%clk 0:02:59.2]} 2. Nf3 {[%clk 0:03:00.1]}
2... c6 {[%clk 0:02:58.7]} 3. g3 {[%clk 0:03:00.3]} 3... Nf6 {[%clk 0:02:54.8]}
4. Bg2 {[%clk 0:03:01.2]} 4... Bf5 {[%clk 0:02:54.2]} 5. O-O {[%clk 0:03:02.1]}
5... e6 {[%clk 0:02:51.3]} 6. d3 {[%clk 0:03:02.3]} 6... h6 {[%clk 0:02:41.4]}
7. h3 {[%clk 0:03:02.4]} 7... h5 {[%clk 0:02:26]} 8. Qe1 {[%clk 0:03:01.2]} 8...
c5 {[%clk 0:02:11.3]} 9. Nh4 {[%clk 0:02:59.6]} 9... Be7 {[%clk 0:01:58.8]} 10.
Nxf5 {[%clk 0:02:58.3]} 10... exf5 {[%clk 0:01:58.5]} 11. c3 {[%clk 0:02:56.7]}
11... Nc6 {[%clk 0:01:55.3]} 12. Nd2 {[%clk 0:02:52.9]} 12... O-O {[%clk
0:01:51]} 13. Nf3 {[%clk 0:02:52.5]} 13... Re8 {[%clk 0:01:44]} 14. Ne5 {[%clk
0:02:51.9]} 14... Bd6 {[%clk 0:01:40.2]} 15. Nxc6 {[%clk 0:02:38.7]} 15... bxc6
{[%clk 0:01:39.6]} 16. Qf2 {[%clk 0:02:37.4]} 16... Qb6 {[%clk 0:01:19.8]} 17.
Kh1 {[%clk 0:02:36.1]} 17... g6 {[%clk 0:01:19.3]} 18. b3 {[%clk 0:02:26]} 18...
Re6 {[%clk 0:01:16.3]} 19. Bb2 {[%clk 0:02:16.3]} 19... Rae8 {[%clk 0:01:15]}
20. Rae1 {[%clk 0:02:14.6]} 20... h4 {[%clk 0:01:07.4]} 21. gxh4 {[%clk
0:02:09.5]} 21... Nh5 {[%clk 0:01:07.2]} 22. e3 {[%clk 0:02:04.5]} 22... a5
{[%clk 0:01:04.8]} 23. Bc1 {[%clk 0:01:48.9]} 23... a4 {[%clk 0:00:58.2]} 24. e4
{[%clk 0:01:48.1]} 24... dxe4 {[%clk 0:00:47.1]} 25. dxe4 {[%clk 0:01:46.2]}
25... fxe4 {[%clk 0:00:46.7]} 26. f5 {[%clk 0:01:43.5]} 26... Ng3+ {[%clk
0:00:43.8]} 27. Kg1 {[%clk 0:01:43.5]} 27... Nxf5 {[%clk 0:00:44.1]} 28. h5
{[%clk 0:01:37.5]} 28... Bg3 {[%clk 0:00:43.6]} 29. Qe2 {[%clk 0:01:26.8]} 29...
c4+ {[%clk 0:00:41.4]} 30. Kh1 {[%clk 0:01:21.3]} 30... Bxe1 {[%clk 0:00:40.9]}
31. hxg6 {[%clk 0:01:18.7]} 31... Ng3+ {[%clk 0:00:40.7]} 0-1

[Event "*** Titled Tuesday Blitz"]
[Site "Chess.com"]
[Date "2020.05.12"]
[Round "9"]
[White "manitodeplomo"]
[Black "petrkostenko"]
[Result "1-0"]
[WhiteElo "2616"]
[BlackElo "2482"]
[TimeControl "180+1"]
[EndTime "11:41:26 PDT"]
[Termination "manitodeplomo won by resignation"]

1. d4 {[%clk 0:03:00.9]} 1... e6 {[%clk 0:02:59.8]} 2. c4 {[%clk 0:03:00.8]}
2... b6 {[%clk 0:02:59.9]} 3. Nf3 {[%clk 0:02:54.6]} 3... Bb7 {[%clk 0:02:58.5]}
4. g3 {[%clk 0:02:55]} 4... Bb4+ {[%clk 0:02:57.1]} 5. Nbd2 {[%clk 0:02:52.5]}
5... Bxf3 {[%clk 0:02:57.3]} 6. exf3 {[%clk 0:02:53.4]} 6... Bxd2+ {[%clk
0:02:57.6]} 7. Qxd2 {[%clk 0:02:51]} 7... d5 {[%clk 0:02:56.3]} 8. b3 {[%clk
0:02:46.4]} 8... Ne7 {[%clk 0:02:55.5]} 9. Bg2 {[%clk 0:02:45.4]} 9... O-O
{[%clk 0:02:54.8]} 10. O-O {[%clk 0:02:44.7]} 10... Nbc6 {[%clk 0:02:55.2]} 11.
Bb2 {[%clk 0:02:43.9]} 11... Qd7 {[%clk 0:02:55.8]} 12. Rfd1 {[%clk 0:02:42.3]}
12... Rfd8 {[%clk 0:02:56.3]} 13. Rac1 {[%clk 0:02:42.6]} 13... Rac8 {[%clk
0:02:56.8]} 14. f4 {[%clk 0:02:38.3]} 14... a5 {[%clk 0:02:52]} 15. Bf3 {[%clk
0:02:32.3]} 15... h6 {[%clk 0:02:49.3]} 16. Kg2 {[%clk 0:02:31.9]} 16... Nf5
{[%clk 0:02:31.7]} 17. cxd5 {[%clk 0:02:13.5]} 17... exd5 {[%clk 0:02:31.1]} 18.
Re1 {[%clk 0:01:57.5]} 18... Nfe7 {[%clk 0:02:08]} 19. h3 {[%clk 0:01:51.6]}
19... Re8 {[%clk 0:01:58.9]} 20. Bg4 {[%clk 0:01:48.1]} 20... f5 {[%clk
0:01:58.6]} 21. Bh5 {[%clk 0:01:44.9]} 21... g6 {[%clk 0:01:58.4]} 22. Bf3
{[%clk 0:01:43.5]} 22... Kf7 {[%clk 0:01:56.4]} 23. Ba3 {[%clk 0:01:43]} 23...
Ng8 {[%clk 0:01:50.2]} 24. Re5 {[%clk 0:01:18.8]} 24... Nf6 {[%clk 0:01:35.4]}
25. Re3 {[%clk 0:00:55.5]} 25... Ne4 {[%clk 0:01:31.5]} 26. Qd1 {[%clk
0:00:53.9]} 26... Na7 {[%clk 0:01:28.6]} 27. Be2 {[%clk 0:00:51.5]} 27... Nb5
{[%clk 0:01:26.3]} 28. Bb2 {[%clk 0:00:49.9]} 28... Qd6 {[%clk 0:01:03.1]} 29.
Bxb5 {[%clk 0:00:48.1]} 1-0

[Event "*** Titled Tuesday Blitz"]
[Site "Chess.com"]
[Date "2020.05.12"]
[Round "9"]
[White "arminmusovic"]
[Black "zala02"]
[Result "1-0"]
[WhiteElo "2527"]
[BlackElo "2256"]
[TimeControl "180+1"]
[EndTime "11:41:28 PDT"]
[Termination "arminmusovic won by resignation"]

1. a3 {[%clk 0:03:00.9]} 1... d5 {[%clk 0:02:57.3]} 2. Nc3 {[%clk 0:02:59.8]}
2... c5 {[%clk 0:02:53.5]} 3. e4 {[%clk 0:02:59.6]} 3... d4 {[%clk 0:02:38.5]}
4. Nce2 {[%clk 0:02:59.4]} 4... e5 {[%clk 0:02:38.2]} 5. Ng3 {[%clk 0:03:00]}
5... Nc6 {[%clk 0:02:37.7]} 6. Bb5 {[%clk 0:02:59.9]} 6... Ne7 {[%clk
0:02:33.8]} 7. Bxc6+ {[%clk 0:03:00.8]} 7... Nxc6 {[%clk 0:02:33.9]} 8. d3
{[%clk 0:03:01.7]} 8... g6 {[%clk 0:02:33.4]} 9. N1e2 {[%clk 0:03:00.9]} 9...
Bg7 {[%clk 0:02:33.7]} 10. f4 {[%clk 0:03:00.3]} 10... exf4 {[%clk 0:02:30.3]}
11. Bxf4 {[%clk 0:03:00.8]} 11... O-O {[%clk 0:02:29.9]} 12. Qd2 {[%clk
0:03:01.1]} 12... f5 {[%clk 0:02:24.8]} 13. O-O {[%clk 0:03:00.9]} 13... fxe4
{[%clk 0:02:18.7]} 14. Nxe4 {[%clk 0:03:01.8]} 14... Qd5 {[%clk 0:02:08.9]} 15.
Bd6 {[%clk 0:02:51.1]} 15... Rxf1+ {[%clk 0:01:36.7]} 16. Rxf1 {[%clk 0:02:52]}
16... c4 {[%clk 0:01:36.4]} 17. Rf8+ {[%clk 0:02:49.7]} 17... Bxf8 {[%clk
0:01:32.3]} 18. Nf6+ {[%clk 0:02:49.7]} 18... Kg7 {[%clk 0:01:31.9]} 19. Nxd5
{[%clk 0:02:45.4]} 19... Bxd6 {[%clk 0:01:31.8]} 20. Qg5 {[%clk 0:02:40.2]}
20... Be5 {[%clk 0:01:16.7]} 21. Nef4 {[%clk 0:02:29.3]} 21... Bf5 {[%clk
0:00:55.9]} 22. g4 {[%clk 0:02:17.2]} 22... h6 {[%clk 0:00:40.1]} 23. Nh5+
{[%clk 0:01:57.8]} 23... Kh7 {[%clk 0:00:38.8]} 24. Ndf6+ {[%clk 0:01:55.5]}
24... Bxf6 {[%clk 0:00:29.6]} 25. Qxf6 {[%clk 0:01:50.9]} 25... gxh5 {[%clk
0:00:22.7]} 26. Qxf5+ {[%clk 0:01:49]} 26... Kg7 {[%clk 0:00:20]} 27. Qd7+
{[%clk 0:01:47.7]} 27... Kg6 {[%clk 0:00:19.8]} 28. Qxb7 {[%clk 0:01:47.9]}
28... Rf8 {[%clk 0:00:16.5]} 29. Qxc6+ {[%clk 0:01:47.8]} 29... Rf6 {[%clk
0:00:17.2]} 30. Qe4+ {[%clk 0:01:46.1]} 30... Kg7 {[%clk 0:00:17.7]} 31. gxh5
{[%clk 0:01:45.5]} 31... c3 {[%clk 0:00:15.5]} 32. bxc3 {[%clk 0:01:44.9]} 32...
dxc3 {[%clk 0:00:16.4]} 33. h4 {[%clk 0:01:43.5]} 33... Kf7 {[%clk 0:00:16.2]}
34. Qc4+ {[%clk 0:01:43.2]} 34... Ke7 {[%clk 0:00:16.2]} 35. Qxc3 {[%clk
0:01:44.1]} 1-0

[Event "*** Titled Tuesday Blitz"]
[Site "Chess.com"]
[Date "2020.05.12"]
[Round "9"]
[White "dennisodessa"]
[Black "OhanyanEminChess"]
[Result "0-1"]
[WhiteElo "2321"]
[BlackElo "2456"]
[TimeControl "180+1"]
[EndTime "11:41:32 PDT"]
[Termination "OhanyanEminChess won by resignation"]

1. c4 {[%clk 0:02:59.1]} 1... Nf6 {[%clk 0:02:59.3]} 2. d4 {[%clk 0:02:59.2]}
2... c5 {[%clk 0:02:59.1]} 3. d5 {[%clk 0:02:59]} 3... b5 {[%clk 0:02:58.6]} 4.
cxb5 {[%clk 0:02:59.9]} 4... a6 {[%clk 0:02:58.5]} 5. bxa6 {[%clk 0:03:00.8]}
5... g6 {[%clk 0:02:57.4]} 6. Nc3 {[%clk 0:03:01.7]} 6... Bg7 {[%clk 0:02:57]}
7. Nf3 {[%clk 0:03:01.6]} 7... O-O {[%clk 0:02:57.5]} 8. e3 {[%clk 0:02:59.4]}
8... d6 {[%clk 0:02:57]} 9. Be2 {[%clk 0:02:51]} 9... Qa5 {[%clk 0:02:56]} 10.
O-O {[%clk 0:02:51.6]} 10... Bxa6 {[%clk 0:02:55.5]} 11. Bd2 {[%clk 0:02:45.1]}
11... Nbd7 {[%clk 0:02:53.4]} 12. a4 {[%clk 0:02:41.3]} 12... Rfb8 {[%clk
0:02:50.5]} 13. Nb5 {[%clk 0:02:30.8]} 13... Qb6 {[%clk 0:02:49.4]} 14. Bc3
{[%clk 0:02:31]} 14... Ne8 {[%clk 0:02:41.9]} 15. Bxg7 {[%clk 0:02:30.5]} 15...
Kxg7 {[%clk 0:02:41.2]} 16. b4 {[%clk 0:01:02.1]} 16... cxb4 {[%clk 0:02:30.4]}
17. Qb3 {[%clk 0:00:53.6]} 17... Qa5 {[%clk 0:02:08.3]} 18. Rfb1 {[%clk
0:00:43.5]} 18... Bxb5 {[%clk 0:02:02.5]} 19. Bxb5 {[%clk 0:00:44.4]} 19... Nc5
{[%clk 0:01:40.3]} 20. Qxb4 {[%clk 0:00:35]} 20... Qxb4 {[%clk 0:01:39]} 21.
Rxb4 {[%clk 0:00:35.9]} 21... Nc7 {[%clk 0:01:38.7]} 22. e4 {[%clk 0:00:11.9]}
22... Nxb5 {[%clk 0:01:37.5]} 23. Rab1 {[%clk 0:00:12.1]} 23... Rxa4 {[%clk
0:01:32.2]} 24. Rxb5 {[%clk 0:00:10.6]} 24... Rxb5 {[%clk 0:01:31.4]} 25. Rxb5
{[%clk 0:00:11.5]} 25... Ra1+ {[%clk 0:01:31.4]} 0-1

[Event "*** Titled Tuesday Blitz"]
[Site "Chess.com"]
[Date "2020.05.12"]
[Round "9"]
[White "Grandelicious"]
[Black "oneshot007"]
[Result "1-0"]
[WhiteElo "2747"]
[BlackElo "2424"]
[TimeControl "180+1"]
[EndTime "11:41:33 PDT"]
[Termination "Grandelicious won on time"]

1. Nf3 {[%clk 0:03:00.9]} 1... c5 {[%clk 0:02:57.3]} 2. c4 {[%clk 0:03:00.6]}
2... g6 {[%clk 0:02:56.8]} 3. d4 {[%clk 0:02:58.3]} 3... cxd4 {[%clk 0:02:50]}
4. Nxd4 {[%clk 0:02:59.2]} 4... Bg7 {[%clk 0:02:49.2]} 5. e4 {[%clk 0:02:59.7]}
5... Nc6 {[%clk 0:02:49.4]} 6. Be3 {[%clk 0:02:59.4]} 6... Qb6 {[%clk
0:02:49.6]} 7. Nb5 {[%clk 0:02:55.6]} 7... Qa5+ {[%clk 0:02:49.5]} 8. N1c3
{[%clk 0:02:44.5]} 8... Nf6 {[%clk 0:02:48.7]} 9. Nd4 {[%clk 0:02:45]} 9... Nxe4
{[%clk 0:02:40]} 10. Qd3 {[%clk 0:02:28.1]} 10... Nxc3 {[%clk 0:02:30.4]} 11.
bxc3 {[%clk 0:02:29]} 11... O-O {[%clk 0:02:26.8]} 12. Be2 {[%clk 0:02:27.8]}
12... d6 {[%clk 0:02:26.5]} 13. O-O {[%clk 0:02:25.9]} 13... Ne5 {[%clk
0:02:14.1]} 14. Qd2 {[%clk 0:02:25.1]} 14... Bd7 {[%clk 0:02:07.9]} 15. Rab1
{[%clk 0:02:21.2]} 15... b6 {[%clk 0:02:03.1]} 16. f4 {[%clk 0:02:18.8]} 16...
Nc6 {[%clk 0:01:42.2]} 17. Nb5 {[%clk 0:02:15.4]} 17... Rfc8 {[%clk 0:01:24.5]}
18. Rb3 {[%clk 0:02:11.8]} 18... Qa6 {[%clk 0:01:19.7]} 19. c5 {[%clk
0:02:08.4]} 19... Na5 {[%clk 0:01:02.4]} 20. Nxd6 {[%clk 0:02:05.4]} 20... Nxb3
{[%clk 0:01:00.8]} 21. axb3 {[%clk 0:02:06.3]} 21... b5 {[%clk 0:00:54.8]} 22.
Nxc8 {[%clk 0:02:02.2]} 22... Qxc8 {[%clk 0:00:54.3]} 23. Rd1 {[%clk 0:01:59.8]}
23... Be6 {[%clk 0:00:52.4]} 24. b4 {[%clk 0:01:58.5]} 24... a6 {[%clk
0:00:51.3]} 25. Bf3 {[%clk 0:01:55.7]} 25... Ra7 {[%clk 0:00:51.3]} 26. Qd8+
{[%clk 0:01:50.3]} 26... Qxd8 {[%clk 0:00:47.8]} 27. Rxd8+ {[%clk 0:01:51.2]}
27... Bf8 {[%clk 0:00:47.7]} 28. f5 {[%clk 0:01:48.1]} 28... Rd7 {[%clk
0:00:47.9]} 29. Rb8 {[%clk 0:01:43]} 1-0

[Event "*** Titled Tuesday Blitz"]
[Site "Chess.com"]
[Date "2020.05.12"]
[Round "9"]
[White "kirillshevchenko"]
[Black "Bathory44"]
[Result "1-0"]
[WhiteElo "2816"]
[BlackElo "2607"]
[TimeControl "180+1"]
[EndTime "11:41:35 PDT"]
[Termination "kirillshevchenko won by resignation"]

1. e4 {[%clk 0:03:00.9]} 1... e6 {[%clk 0:02:59.8]} 2. d4 {[%clk 0:03:00.8]}
2... d5 {[%clk 0:03:00.4]} 3. Nc3 {[%clk 0:03:01.4]} 3... Nf6 {[%clk 0:03:00]}
4. e5 {[%clk 0:03:00.9]} 4... Nfd7 {[%clk 0:03:00.2]} 5. f4 {[%clk 0:03:01.6]}
5... c5 {[%clk 0:03:00.8]} 6. Nf3 {[%clk 0:03:00.9]} 6... Nc6 {[%clk 0:02:57.1]}
7. Be3 {[%clk 0:03:01]} 7... Be7 {[%clk 0:02:57.7]} 8. Qd2 {[%clk 0:03:00.7]}
8... O-O {[%clk 0:02:57.5]} 9. dxc5 {[%clk 0:03:00.9]} 9... Qa5 {[%clk
0:02:57.3]} 10. O-O-O {[%clk 0:03:00.1]} 10... b6 {[%clk 0:02:57.1]} 11. Bb5
{[%clk 0:02:59.8]} 11... Nb4 {[%clk 0:02:56.8]} 12. a3 {[%clk 0:03:00.2]} 12...
bxc5 {[%clk 0:02:56.3]} 13. Kb1 {[%clk 0:03:00.7]} 13... Nb6 {[%clk 0:02:50.5]}
14. f5 {[%clk 0:02:59.2]} 14... Rb8 {[%clk 0:02:35.9]} 15. f6 {[%clk 0:02:47]}
15... gxf6 {[%clk 0:02:35]} 16. Bxc5 {[%clk 0:02:14.7]} 16... Nc6 {[%clk
0:01:20.6]} 17. Qh6 {[%clk 0:01:56]} 17... Nd7 {[%clk 0:00:46.9]} 18. Bd3 {[%clk
0:01:23.3]} 18... f5 {[%clk 0:00:31.4]} 19. Bxe7 {[%clk 0:01:20]} 19... Qxc3
{[%clk 0:00:28.7]} 20. Bb4 {[%clk 0:01:19.7]} 20... Rxb4 {[%clk 0:00:26.2]} 21.
axb4 {[%clk 0:01:19.7]} 21... Qxb4 {[%clk 0:00:22.5]} 22. Ng5 {[%clk 0:01:18.8]}
1-0

[Event "*** Titled Tuesday Blitz"]
[Site "Chess.com"]
[Date "2020.05.12"]
[Round "9"]
[White "I_Hit_18K_on_BS"]
[Black "CHENNAIBOND"]
[Result "0-1"]
[WhiteElo "2105"]
[BlackElo "1301"]
[TimeControl "180+1"]
[EndTime "11:41:40 PDT"]
[Termination "CHENNAIBOND won on time"]

1. e4 {[%clk 0:03:00.9]} 1... c5 {[%clk 0:02:49.8]} 2. Nf3 {[%clk 0:02:59.9]}
2... Nc6 {[%clk 0:02:49.1]} 3. d4 {[%clk 0:02:58.7]} 3... cxd4 {[%clk
0:02:49.5]} 4. Nxd4 {[%clk 0:02:59.5]} 4... Nf6 {[%clk 0:02:50]} 5. Nc3 {[%clk
0:02:58.8]} 5... e5 {[%clk 0:02:50.6]} 6. Ndb5 {[%clk 0:02:55.3]} 6... d6 {[%clk
0:02:50.9]} 7. Bg5 {[%clk 0:02:54]} 7... a6 {[%clk 0:02:51.4]} 8. Bxf6 {[%clk
0:02:49.6]} 8... gxf6 {[%clk 0:02:51]} 9. Na3 {[%clk 0:02:47.7]} 9... b5 {[%clk
0:02:50.5]} 10. Nd5 {[%clk 0:02:45.6]} 10... f5 {[%clk 0:02:48.1]} 11. Bd3
{[%clk 0:02:28]} 11... Be6 {[%clk 0:02:47.2]} 12. O-O {[%clk 0:02:02.5]} 12...
Bxd5 {[%clk 0:02:37.9]} 13. exd5 {[%clk 0:01:59.6]} 13... Ne7 {[%clk 0:02:38.8]}
14. Qh5 {[%clk 0:01:58.6]} 14... Qd7 {[%clk 0:02:22.3]} 15. c4 {[%clk
0:01:15.7]} 15... e4 {[%clk 0:02:08.9]} 16. Be2 {[%clk 0:01:11.6]} 16... Bg7
{[%clk 0:02:03.7]} 17. Rab1 {[%clk 0:01:08.4]} 17... O-O {[%clk 0:01:55.4]} 18.
cxb5 {[%clk 0:01:04.1]} 18... Nxd5 {[%clk 0:01:53.7]} 19. Qg5 {[%clk 0:00:38.3]}
19... h6 {[%clk 0:01:44.5]} 20. Qg3 {[%clk 0:00:32]} 20... f4 {[%clk 0:01:40.5]}
21. Qb3 {[%clk 0:00:23.9]} 21... Qf5 {[%clk 0:01:33.6]} 22. Rbd1 {[%clk
0:00:19.6]} 22... f3 {[%clk 0:01:13.5]} 0-1

[Event "*** Titled Tuesday Blitz"]
[Site "Chess.com"]
[Date "2020.05.12"]
[Round "9"]
[White "Khamrakulov_Djurabek"]
[Black "ALeks_Ivlev"]
[Result "1-0"]
[WhiteElo "2805"]
[BlackElo "2602"]
[TimeControl "180+1"]
[EndTime "11:41:41 PDT"]
[Termination "Khamrakulov_Djurabek won by resignation"]

1. e4 {[%clk 0:03:00.9]} 1... c5 {[%clk 0:02:53.1]} 2. c3 {[%clk 0:03:01]} 2...
Nf6 {[%clk 0:02:52.1]} 3. e5 {[%clk 0:03:01.3]} 3... Nd5 {[%clk 0:02:51.5]} 4.
d4 {[%clk 0:03:02]} 4... cxd4 {[%clk 0:02:51.3]} 5. cxd4 {[%clk 0:03:02]} 5...
Nc6 {[%clk 0:02:50.9]} 6. Nf3 {[%clk 0:03:02.4]} 6... d6 {[%clk 0:02:50.6]} 7.
Bc4 {[%clk 0:03:02.6]} 7... dxe5 {[%clk 0:02:49.6]} 8. Nxe5 {[%clk 0:02:58.9]}
8... Nxe5 {[%clk 0:02:42.7]} 9. dxe5 {[%clk 0:02:58.7]} 9... e6 {[%clk
0:02:42.9]} 10. O-O {[%clk 0:02:58.1]} 10... Be7 {[%clk 0:02:42.4]} 11. Qg4
{[%clk 0:02:58.1]} 11... Kf8 {[%clk 0:02:23]} 12. Rd1 {[%clk 0:02:56.4]} 12...
Qc7 {[%clk 0:02:20.1]} 13. Qe2 {[%clk 0:02:36.8]} 13... Bd7 {[%clk 0:02:18.1]}
14. Bxd5 {[%clk 0:02:35]} 14... exd5 {[%clk 0:02:06.7]} 15. Nc3 {[%clk 0:02:35]}
15... d4 {[%clk 0:01:34.8]} 16. Nd5 {[%clk 0:02:12.3]} 16... Qc5 {[%clk
0:01:28.7]} 17. Nxe7 {[%clk 0:02:11.3]} 17... Qxe7 {[%clk 0:01:22.2]} 18. Rxd4
{[%clk 0:02:10.6]} 18... Bc6 {[%clk 0:01:07.2]} 19. Bd2 {[%clk 0:02:10.4]} 19...
Kg8 {[%clk 0:00:57.2]} 20. Bb4 {[%clk 0:02:02.1]} 20... Qg5 {[%clk 0:00:54.8]}
21. f3 {[%clk 0:01:46.2]} 21... h6 {[%clk 0:00:52.7]} 22. e6 {[%clk 0:01:37.8]}
22... fxe6 {[%clk 0:00:48]} 23. Qxe6+ {[%clk 0:01:37.6]} 23... Kh7 {[%clk
0:00:48.1]} 24. Rg4 {[%clk 0:01:34.3]} 24... Rhe8 {[%clk 0:00:21.9]} 25. Qf7
{[%clk 0:01:18]} 25... Qe3+ {[%clk 0:00:21.6]} 26. Kh1 {[%clk 0:01:17.7]} 26...
Rg8 {[%clk 0:00:17.3]} 27. Bc3 {[%clk 0:01:15.5]} 1-0